[Event "V. Korchnoi Memorial 2019"]
[Site "St. Petersburg"]
[Date "2019.08.22"]
[Round "9.4"]
[White "Hamitevici, Vladimir"]
[Black "Iljiushenok, Ilia"]
[Result "1/2-1/2"]
[ECO "E63"]
[WhiteElo "2480"]
[BlackElo "2533"]
[Annotator "ChessBase"]
[PlyCount "84"]
[EventDate "2019.08.13"]
[EventType "swiss"]
[EventCountry "RUS"]
[SourceTitle "playchess.com"]
[Source "ChessBase"]
[SourceQuality "1"]
[TimeControl "5400+30"]

1. g3 {[%emt 0:04:13]} Nf6 {[%emt 0:00:19]} 2. Nf3 {[%emt 0:03:54]} g6 {[%emt 0:00:16]} 3. Bg2 {[%emt 0:05:06]} Bg7 {[%emt 0:00:05]} 4. O-O {[%emt 0:00:04]} O-O {[%emt 0:00:03]} 5. d4 {[%emt 0:00:03]} d6 {[%emt 0:00:05]} 6. c4 {[%emt 0:00:04]} Nc6 {[%emt 0:00:30]} 7. Nc3 {[%emt 0:00:22]} Rb8 {[%emt 0:02:05]} 8. b3 {[%emt 0:02:19]} a6 {[%emt 0:02:08]} 9. Bb2 {[%emt 0:05:29]} b5 {[%emt 0:04:49]} 10. Ne1 {[%emt 0:01:11]} Bd7 {[%emt 0:05:14]} 11. c5 {[%emt 0:01:19]} e6 {[%emt 0:09:09]} 12. Rc1 {[%emt 0:03:31]} Ne7 {[%emt 0:08:34]} 13. Nd3 {[%emt 0:05:40]} b4 {[%emt 0:08:24]} 14. Nb1 {[%emt 0:01:31]} d5 {[%emt 0:07:53]} 15. Ne5 {[%emt 0:04:59]} Bb5 {[%emt 0:02:31]} 16. a4 {[%emt 0:00:27]} bxa3 {[%emt 0:00:52]} 17. Nxa3 {[%emt 0:00:07]} Nd7 {[%emt 0:02:10]} 18. Nf3 {[%emt 0:03:18]} c6 {[%emt 0:02:02]} 19. Bc3 {[%emt 0:04:31]} Qc7 {[%emt 0:06:11]} 20. Qd2 {[%emt 0:01:58]} Nf6 {[%emt 0:01:57]} 21. Ba5 {[%emt 0:01:10]} Qb7 {[%emt 0:00:01]} 22. Rfd1 {[%emt 0:12:28]} Nf5 {[%emt 0:03:00]} 23. e3 {[%emt 0:02:58]} h5 {[%emt 0:00:07]} 24. Ra1 {[%emt 0:02:41]} h4 {[%emt 0:03:17]} 25. Qe1 {[%emt 0:16:27]} hxg3 {[%emt 0:06:47]} 26. hxg3 {[%emt 0:00:01]} Ng4 {[%emt 0:00:08]} 27. Bh3 {[%emt 0:01:40]} Nf6 {[%emt 0:00:02]} 28. Ra2 {[%emt 0:07:58]} Ra8 {[%emt 0:00:52]} 29. Bg2 {[%emt 0:04:31]} Nd7 {[%emt 0:01:21]} 30. Bh3 {[%emt 0:00:30]} Nf6 {[%emt 0:00:56]} 31. Kg2 {[%emt 0:00:16]} Rfe8 {[%emt 0:00:33]} 32. Qh1 {[%emt 0:00:49]} Ne4 {[%emt 0:00:41]} 33. Qe1 {[%emt 0:00:46]} Bf6 {[%emt 0:02:50]} 34. Bb6 {[%emt 0:00:56]} Kg7 {[%emt 0:03:05]} 35. Nxb5 {[%emt 0:00:12]} cxb5 {[%emt 0:01:26]} 36. Rda1 {[%emt 0:00:56]} Rh8 {[%emt 0:00:09]} 37. Qa5 {[%emt 0:01:49]} Rhc8 {[%emt 0:03:54]} 38. Rh1 {[%emt 0:01:03]} Ne7 {[%emt 0:00:15]} 39. Qe1 {[%emt 0:01:26]} Nc6 {[%emt 0:00:01]} 40. Ng1 {[%emt 0:00:34]} Bd8 {[%emt 0:00:51]} 41. Bxd8 {[%emt 0:00:06]} Rxd8 {[%emt 0:00:01]} 42. f3 {[%emt 0:00:33]} Nf6 {[%emt 0:00:13]} 1/2-1/2

[Event "V. Korchnoi Memorial 2019"]
[Site "St. Petersburg"]
[Date "2019.08.22"]
[Round "9.5"]
[White "Chigaev, Maksim"]
[Black "Yatzenko, Anton"]
[Result "1-0"]
[ECO "B23"]
[WhiteElo "2643"]
[BlackElo "2360"]
[Annotator "ChessBase"]
[PlyCount "69"]
[EventDate "2019.08.13"]
[EventType "swiss"]
[EventCountry "RUS"]
[SourceTitle "playchess.com"]
[Source "ChessBase"]
[SourceQuality "1"]
[TimeControl "5400+30"]

1. e4 {[%emt 0:00:00]} c5 {[%emt 0:00:00]} 2. Nc3 {[%emt 0:00:24]} Nc6 {[%emt 0:00:00]} 3. Nge2 {[%emt 0:00:53]} Nf6 {[%emt 0:01:07]} 4. g3 {[%emt 0:00:22]} d5 {[%emt 0:02:16]} 5. exd5 {[%emt 0:00:09]} Nxd5 {[%emt 0:00:03]} 6. Bg2 {[%emt 0:00:10]} Nc7 {[%emt 0:00:59]} 7. O-O {[%emt 0:09:07]} g6 {[%emt 0:01:04]} 8. d3 {[%emt 0:00:51]} Bg7 {[%emt 0:00:48]} 9. Ne4 {[%emt 0:00:32]} Ne6 {[%emt 0:02:39]} 10. Nf4 {[%emt 0:00:18]} Qb6 {[%emt 0:16:32]} 11. c3 {[%emt 0:15:28]} Nxf4 {[%emt 0:03:20]} 12. Bxf4 {[%emt 0:00:08]} f5 {[%emt 0:01:32]} 13. Ng5 {[%emt 0:05:01]} h6 {[%emt 0:03:34]} 14. Nf3 {[%emt 0:00:15]} Qxb2 {[%emt 0:05:24]} 15. d4 {[%emt 0:00:48]} cxd4 {[%emt 0:05:15]} 16. cxd4 {[%emt 0:00:12]} Nxd4 {[%emt 0:12:09]} 17. Rb1 {[%emt 0:05:36]} Ne2+ {[%emt 0:03:02]} 18. Kh1 {[%emt 0:00:26]} Nc3 {[%emt 0:08:39]} 19. Rxb2 {[%emt 0:00:36]} Nxd1 {[%emt 0:00:03]} 20. Rc2 {[%emt 0:00:44]} Nc3 {[%emt 0:00:02]} 21. Rfc1 {[%emt 0:06:41]} Bd7 {[%emt 0:00:51]} 22. Rxc3 {[%emt 0:03:38]} Bxc3 {[%emt 0:00:04]} 23. Rxc3 {[%emt 0:00:08]} Rc8 {[%emt 0:00:38]} 24. Rxc8+ {[%emt 0:00:31]} Bxc8 {[%emt 0:00:02]} 25. Ne5 {[%emt 0:00:10]} g5 {[%emt 0:02:17]} 26. Be3 {[%emt 0:00:13]} Be6 {[%emt 0:03:37]} 27. Bxb7 {[%emt 0:08:38]} Bxa2 {[%emt 0:00:26]} 28. Bxa7 {[%emt 0:00:16]} O-O {[%emt 0:02:04]} 29. Kg1 {[%emt 0:19:06]} Rd8 {[%emt 0:01:23]} 30. Bf3 {[%emt 0:00:20]} Bd5 {[%emt 0:01:55]} 31. Bb6 {[%emt 0:01:56]} Rd6 {[%emt 0:03:56]} 32. Bc7 {[%emt 0:00:32]} Rd7 {[%emt 0:00:05]} 33. Nxd7 {[%emt 0:00:07]} Bxf3 {[%emt 0:00:03]} 34. Ne5 {[%emt 0:00:12]} Bd5 {[%emt 0:00:05]} 35. Bd8 {[%emt 0:00:29]} 1-0

[Event "V. Korchnoi Memorial 2019"]
[Site "St. Petersburg"]
[Date "2019.08.22"]
[Round "9.6"]
[White "Gasanov, Eldar"]
[Black "Gareyev, Timur"]
[Result "1/2-1/2"]
[ECO "E70"]
[WhiteElo "2475"]
[BlackElo "2600"]
[Annotator "ChessBase"]
[PlyCount "69"]
[EventDate "2019.08.13"]
[EventType "swiss"]
[EventCountry "RUS"]
[SourceTitle "playchess.com"]
[Source "ChessBase"]
[SourceQuality "1"]
[TimeControl "5400+30"]

1. d4 {[%emt 1:30:30]} Nf6 {[%emt 1:30:30]} 2. c4 {[%emt 0:00:30]} g6 {[%emt 0:00:30]} 3. Nc3 {[%emt 0:00:30]} Bg7 {[%emt 0:00:30]} 4. e4 {[%emt 0:00:30]} O-O {[%emt 0:00:30]} 5. Bg5 {[%emt 0:00:30]} c5 {[%emt 0:00:30]} 6. d5 {[%emt 0:00:30]} d6 {[%emt 0:00:30]} 7. Bd3 {[%emt 0:00:30]} h6 {[%emt 0:00:30]} 8. Bf4 {[%emt 0:00:30]} e5 {[%emt 0:00:30]} 9. Bd2 {[%emt 0:00:30]} Na6 {[%emt 0:00:30]} 10. Nf3 {[%emt 0:00:30]} Nb4 {[%emt 0:00:30]} 11. Be2 {[%emt 0:00:30]} Nh7 {[%emt 0:00:30]} 12. a3 {[%emt 0:00:30]} Na6 {[%emt 0:00:30]} 13. Qc1 {[%emt 0:00:30]} h5 {[%emt 0:00:30]} 14. O-O {[%emt 0:00:30]} Bg4 {[%emt 0:00:30]} 15. h3 {[%emt 0:00:30]} Bxf3 {[%emt 0:00:30]} 16. Bxf3 {[%emt 0:00:30]} Bf6 {[%emt 0:00:30]} 17. Be2 {[%emt 0:00:30]} Qe7 {[%emt 0:00:30]} 18. Nd1 {[%emt 0:00:30]} Bg5 {[%emt 0:00:30]} 19. Ne3 {[%emt 0:00:30]} h4 {[%emt 0:00:30]} 20. Bd3 {[%emt 0:00:30]} Kh8 {[%emt 0:00:30]} 21. Qc3 {[%emt 0:00:30]} Bf4 {[%emt 0:00:30]} 22. Rfe1 {[%emt 0:00:30]} Nf6 {[%emt 0:00:30]} 23. b4 {[%emt 0:00:30]} Bg5 {[%emt 0:00:30]} 24. Rab1 {[%emt 0:00:30]} Kh7 {[%emt 0:00:30]} 25. Rb2 {[%emt 0:00:30]} Bf4 {[%emt 0:00:30]} 26. Qc2 {[%emt 0:00:30]} Kg7 {[%emt 0:00:30]} 27. Reb1 {[%emt 0:00:30]} Rh8 {[%emt 0:00:30]} 28. Be2 {[%emt 0:00:30]} Nh7 {[%emt 0:00:30]} 29. Qd3 {[%emt 0:00:30]} Qg5 {[%emt 0:00:30]} 30. Bd1 {[%emt 0:00:30]} Rad8 {[%emt 0:00:30]} 31. Ba4 {[%emt 0:00:30]} Nf6 {[%emt 0:00:30]} 32. Bb5 {[%emt 0:00:30]} Nc7 {[%emt 0:00:30]} 33. Ba4 {[%emt 0:00:30]} Na6 {[%emt 0:00:30]} 34. Bb5 {[%emt 0:00:30]} Nc7 {[%emt 0:00:30]} 35. Ba4 {[%emt 0:00:30]} 1/2-1/2

[Event "V. Korchnoi Memorial 2019"]
[Site "St. Petersburg"]
[Date "2019.08.22"]
[Round "9.7"]
[White "Goganov, Aleksey"]
[Black "Mokshanov, Alexey"]
[Result "1-0"]
[ECO "A17"]
[WhiteElo "2564"]
[BlackElo "2447"]
[Annotator "ChessBase"]
[PlyCount "185"]
[EventDate "2019.08.13"]
[EventType "swiss"]
[EventCountry "RUS"]
[SourceTitle "playchess.com"]
[Source "ChessBase"]
[SourceQuality "1"]
[TimeControl "5400+30"]

1. Nf3 {[%emt 0:00:00]} d5 {[%emt 0:00:00]} 2. e3 {[%emt 0:00:00]} Nf6 {[%emt 0:00:00]} 3. c4 {[%emt 0:00:00]} e6 {[%emt 0:00:04]} 4. Nc3 {[%emt 0:00:00]} c5 {[%emt 0:09:51]} 5. cxd5 {[%emt 0:00:00]} Nxd5 {[%emt 0:01:12]} 6. Bc4 {[%emt 0:00:24]} Nxc3 {[%emt 0:08:13]} 7. bxc3 {[%emt 0:00:49]} Be7 {[%emt 0:00:07]} 8. O-O {[%emt 0:00:06]} O-O {[%emt 0:00:03]} 9. d4 {[%emt 0:00:07]} b6 {[%emt 0:01:31]} 10. e4 {[%emt 0:12:21]} Nc6 {[%emt 0:06:17]} 11. Be3 {[%emt 0:10:23]} Bb7 {[%emt 0:05:53]} 12. Qe2 {[%emt 0:02:08]} cxd4 {[%emt 0:12:13]} 13. cxd4 {[%emt 0:00:51]} Rc8 {[%emt 0:00:21]} 14. Rfd1 {[%emt 0:04:21]} Nb4 {[%emt 0:19:03]} 15. a3 {[%emt 0:08:04]} Nc2 {[%emt 0:04:02]} 16. Qxc2 {[%emt 0:00:28]} Ba6 {[%emt 0:00:51]} 17. Ne5 {[%emt 0:03:16]} Bxc4 {[%emt 0:02:11]} 18. Qa4 {[%emt 0:02:36]} b5 {[%emt 0:00:39]} 19. Qxa7 {[%emt 0:00:44]} Ra8 {[%emt 0:01:33]} 20. Qb7 {[%emt 0:00:28]} Bxa3 {[%emt 0:02:25]} 21. Nc6 {[%emt 0:09:59]} Qe8 {[%emt 0:11:29]} 22. Bf4 {[%emt 0:09:41]} Kh8 {[%emt 0:03:09]} 23. Nb8 {[%emt 0:09:33]} Ra4 {[%emt 0:00:33]} 24. Nd7 {[%emt 0:00:11]} Qe7 {[%emt 0:01:06]} 25. Qc6 {[%emt 0:02:59]} Rg8 {[%emt 0:04:40]} 26. Ne5 {[%emt 0:01:47]} h6 {[%emt 0:01:19]} 27. Nxc4 {[%emt 0:05:35]} Rxc4 {[%emt 0:00:02]} 28. Qxb5 {[%emt 0:00:06]} Rgc8 {[%emt 0:00:40]} 29. Be3 {[%emt 0:00:40]} Bd6 {[%emt 0:01:00]} 30. e5 {[%emt 0:01:01]} Bb8 {[%emt 0:01:59]} 31. Ra8 {[%emt 0:04:29]} Ba7 {[%emt 0:00:02]} 32. Qxc4 {[%emt 0:01:24]} Rxa8 {[%emt 0:00:00]} 33. Ra1 {[%emt 0:00:25]} Rd8 {[%emt 0:00:39]} 34. h3 {[%emt 0:00:24]} Qb7 {[%emt 0:00:57]} 35. Kh2 {[%emt 0:00:40]} Rd5 {[%emt 0:01:14]} 36. Ra4 {[%emt 0:00:36]} Qd7 {[%emt 0:00:51]} 37. Rb4 {[%emt 0:00:22]} Kg8 {[%emt 0:00:49]} 38. Qc3 {[%emt 0:01:00]} Qd8 {[%emt 0:00:37]} 39. Rc4 {[%emt 0:00:35]} Qh4 {[%emt 0:00:38]} 40. Rc8+ {[%emt 0:02:39]} Rd8 {[%emt 0:00:08]} 41. g3 {[%emt 0:00:55]} Qe7 {[%emt 0:00:01]} 42. Rc6 {[%emt 0:00:35]} Qd7 {[%emt 0:01:48]} 43. Rd6 {[%emt 0:00:42]} Qe7 {[%emt 0:00:02]} 44. Qa5 {[%emt 0:00:47]} Rd7 {[%emt 0:00:27]} 45. Qa4 {[%emt 0:00:35]} Rc7 {[%emt 0:00:17]} 46. h4 {[%emt 0:00:20]} Bb8 {[%emt 0:01:06]} 47. Rb6 {[%emt 0:00:32]} Ba7 {[%emt 0:00:02]} 48. Rd6 {[%emt 0:00:51]} Bb8 {[%emt 0:00:01]} 49. Rb6 {[%emt 0:00:47]} Ba7 {[%emt 0:00:00]} 50. Ra6 {[%emt 0:00:38]} Qd7 {[%emt 0:00:34]} 51. Qa3 {[%emt 0:00:16]} Rb7 {[%emt 0:00:59]} 52. Qa2 {[%emt 0:00:43]} Qc7 {[%emt 0:00:50]} 53. Ra4 {[%emt 0:01:15]} Qd7 {[%emt 0:00:23]} 54. Ra6 {[%emt 0:01:06]} Qc7 {[%emt 0:00:08]} 55. Qe2 {[%emt 0:00:27]} Qb8 {[%emt 0:01:30]} 56. Qg4 {[%emt 0:00:19]} Kh8 {[%emt 0:00:37]} 57. Qe4 {[%emt 0:00:48]} Rb4 {[%emt 0:00:14]} 58. Rd6 {[%emt 0:00:15]} Qe8 {[%emt 0:00:36]} 59. Ra6 {[%emt 0:00:35]} Qd7 {[%emt 0:00:46]} 60. Qa8+ {[%emt 0:00:20]} Bb8 {[%emt 0:00:05]} 61. Rd6 {[%emt 0:00:23]} Qb7 {[%emt 0:00:24]} 62. Rd8+ {[%emt 0:00:18]} Kh7 {[%emt 0:00:01]} 63. Qxb7 {[%emt 0:00:29]} Rxb7 {[%emt 0:00:01]} 64. Kg2 {[%emt 0:00:30]} Kg6 {[%emt 0:00:30]} 65. Kf3 {[%emt 0:00:05]} h5 {[%emt 0:00:26]} 66. Ke4 {[%emt 0:00:31]} Kh7 {[%emt 0:01:41]} 67. Re8 {[%emt 0:00:34]} Ba7 {[%emt 0:00:22]} 68. f3 {[%emt 0:00:16]} Rd7 {[%emt 0:00:17]} 69. g4 {[%emt 0:00:16]} hxg4 {[%emt 0:00:06]} 70. fxg4 {[%emt 0:00:03]} Bb6 {[%emt 0:00:32]} 71. h5 {[%emt 0:00:20]} Ba7 {[%emt 0:00:52]} 72. g5 {[%emt 0:00:35]} g6 {[%emt 0:00:02]} 73. h6 {[%emt 0:00:40]} Bb6 {[%emt 0:00:08]} 74. Rb8 {[%emt 0:00:34]} Ba7 {[%emt 0:00:05]} 75. Rb5 {[%emt 0:01:20]} Kg8 {[%emt 0:00:09]} 76. Rb4 {[%emt 0:00:05]} Kh7 {[%emt 0:00:03]} 77. Bd2 {[%emt 0:00:23]} Kg8 {[%emt 0:00:10]} 78. Rc4 {[%emt 0:00:05]} Bb6 {[%emt 0:00:26]} 79. Rb4 {[%emt 0:01:14]} Ba7 {[%emt 0:00:04]} 80. Bc3 {[%emt 0:00:17]} Kh7 {[%emt 0:00:05]} 81. Ra4 {[%emt 0:01:21]} Bb6 {[%emt 0:00:17]} 82. Ra6 {[%emt 0:00:22]} Rb7 {[%emt 0:00:59]} 83. Ba5 {[%emt 0:00:41]} Bxa5 {[%emt 0:01:09]} 84. Rxa5 {[%emt 0:00:04]} Rd7 {[%emt 0:00:02]} 85. Ra8 {[%emt 0:00:09]} Rb7 {[%emt 0:00:05]} 86. Rf8 {[%emt 0:00:07]} Rd7 {[%emt 0:00:04]} 87. Kd3 {[%emt 0:00:26]} Rc7 {[%emt 0:00:01]} 88. Kd2 {[%emt 0:00:10]} Rd7 {[%emt 0:00:02]} 89. Kc3 {[%emt 0:00:06]} Rc7+ {[%emt 0:00:09]} 90. Kb4 {[%emt 0:00:05]} Rb7+ {[%emt 0:00:03]} 91. Kc5 {[%emt 0:00:34]} Rc7+ {[%emt 0:00:12]} 92. Kd6 {[%emt 0:00:14]} Ra7 {[%emt 0:00:13]} 93. Kc6 {[%emt 0:00:39]} 1-0

[Event "V. Korchnoi Memorial 2019"]
[Site "St. Petersburg"]
[Date "2019.08.22"]
[Round "9.8"]
[White "Mohammad Nubairshah Shaikh"]
[Black "Stupak, Kirill"]
[Result "0-1"]
[ECO "D35"]
[WhiteElo "2442"]
[BlackElo "2561"]
[Annotator "ChessBase"]
[PlyCount "116"]
[EventDate "2019.08.13"]
[EventType "swiss"]
[EventCountry "RUS"]
[SourceTitle "playchess.com"]
[Source "ChessBase"]
[SourceQuality "1"]
[TimeControl "5400+30"]

1. Nf3 {[%emt 0:08:35]} d5 {[%emt 0:02:40]} 2. d4 {[%emt 0:00:06]} Nf6 {[%emt 0:00:18]} 3. c4 {[%emt 0:00:05]} e6 {[%emt 0:00:17]} 4. Nc3 {[%emt 0:00:03]} c6 {[%emt 0:00:52]} 5. Bg5 {[%emt 0:00:29]} Nbd7 {[%emt 0:00:04]} 6. cxd5 {[%emt 0:00:28]} exd5 {[%emt 0:00:07]} 7. e3 {[%emt 0:00:38]} h6 {[%emt 0:00:11]} 8. Bh4 {[%emt 0:00:08]} g5 {[%emt 0:00:02]} 9. Bg3 {[%emt 0:00:30]} Nh5 {[%emt 0:00:01]} 10. Be5 {[%emt 0:12:53]} Ng7 {[%emt 0:00:49]} 11. Bd3 {[%emt 0:13:51]} g4 {[%emt 0:09:57]} 12. Bxg7 {[%emt 0:03:57]} Bxg7 {[%emt 0:00:11]} 13. Ng1 {[%emt 0:00:09]} Nb6 {[%emt 0:08:48]} 14. Nge2 {[%emt 0:02:56]} h5 {[%emt 0:03:33]} 15. Na4 {[%emt 0:15:32]} Nc4 {[%emt 0:08:10]} 16. Bxc4 {[%emt 0:07:48]} dxc4 {[%emt 0:01:15]} 17. Qc2 {[%emt 0:02:46]} Qa5+ {[%emt 0:03:16]} 18. Nac3 {[%emt 0:01:25]} Bf5 {[%emt 0:02:51]} 19. Qa4 {[%emt 0:05:58]} Qxa4 {[%emt 0:11:14]} 20. Nxa4 {[%emt 0:00:02]} Bf8 {[%emt 0:00:01]} 21. f3 {[%emt 0:05:34]} Bh6 {[%emt 0:03:21]} 22. Kf2 {[%emt 0:03:11]} O-O-O {[%emt 0:03:04]} 23. e4 {[%emt 0:06:40]} Bg6 {[%emt 0:04:00]} 24. b3 {[%emt 0:00:04]} cxb3 {[%emt 0:01:54]} 25. axb3 {[%emt 0:00:02]} b6 {[%emt 0:00:39]} 26. Nb2 {[%emt 0:01:45]} Kb7 {[%emt 0:02:01]} 27. Nc4 {[%emt 0:00:55]} f6 {[%emt 0:00:58]} 28. Ra2 {[%emt 0:05:03]} Bf7 {[%emt 0:02:13]} 29. Rha1 {[%emt 0:00:49]} a5 {[%emt 0:00:08]} 30. Rd1 {[%emt 0:01:21]} Rhe8 {[%emt 0:02:46]} 31. Ng3 {[%emt 0:00:41]} gxf3 {[%emt 0:03:38]} 32. gxf3 {[%emt 0:00:02]} Bf4 {[%emt 0:00:04]} 33. Re2 {[%emt 0:01:27]} a4 {[%emt 0:00:33]} 34. Rb2 {[%emt 0:00:35]} axb3 {[%emt 0:01:52]} 35. Ne3 {[%emt 0:00:23]} c5 {[%emt 0:04:07]} 36. d5 {[%emt 0:00:05]} Bxe3+ {[%emt 0:00:16]} 37. Kxe3 {[%emt 0:00:03]} Bxd5 {[%emt 0:01:17]} 38. Rbd2 {[%emt 0:00:57]} b2 {[%emt 0:11:23]} 39. Rxb2 {[%emt 0:00:01]} Bf7 {[%emt 0:00:01]} 40. Rdb1 {[%emt 0:00:01]} Re6 {[%emt 0:01:19]} 41. Rc1 {[%emt 0:01:52]} Rc6 {[%emt 0:00:40]} 42. Nf5 {[%emt 0:00:15]} Rd7 {[%emt 0:00:38]} 43. Rg1 {[%emt 0:00:21]} Bc4 {[%emt 0:02:06]} 44. Rd2 {[%emt 0:00:08]} Rxd2 {[%emt 0:02:49]} 45. Kxd2 {[%emt 0:00:01]} b5 {[%emt 0:00:00]} 46. Rg7+ {[%emt 0:00:56]} Kb6 {[%emt 0:03:08]} 47. Rh7 {[%emt 0:00:01]} Rc7 {[%emt 0:01:28]} 48. Rh6 {[%emt 0:00:07]} Rd7+ {[%emt 0:00:33]} 49. Kc2 {[%emt 0:00:03]} Ka5 {[%emt 0:00:47]} 50. Rxf6 {[%emt 0:00:04]} Kb4 {[%emt 0:00:03]} 51. Rd6 {[%emt 0:02:44]} Ra7 {[%emt 0:00:01]} 52. Ne3 {[%emt 0:00:29]} Ra2+ {[%emt 0:01:44]} 53. Kd1 {[%emt 0:00:03]} Be2+ {[%emt 0:01:24]} 54. Kc1 {[%emt 0:00:39]} Bxf3 {[%emt 0:00:12]} 55. Nd5+ {[%emt 0:00:20]} Kb3 {[%emt 0:00:26]} 56. Rb6 {[%emt 0:01:12]} b4 {[%emt 0:00:20]} 57. Nf6 {[%emt 0:00:23]} Rc2+ {[%emt 0:00:01]} 58. Kb1 {[%emt 0:00:01]} Rd2 {[%emt 0:00:01]} 0-1

[Event "V. Korchnoi Memorial 2019"]
[Site "St. Petersburg"]
[Date "2019.08.22"]
[Round "9.9"]
[White "Vorobiov, Evgeny E."]
[Black "Faizrakhmanov, Ramil"]
[Result "1-0"]
[ECO "E12"]
[WhiteElo "2560"]
[BlackElo "2440"]
[Annotator "ChessBase"]
[PlyCount "95"]
[EventDate "2019.08.13"]
[EventType "swiss"]
[EventCountry "RUS"]
[SourceTitle "playchess.com"]
[Source "ChessBase"]
[SourceQuality "1"]
[TimeControl "5400+30"]

1. d4 {[%emt 0:00:00]} Nf6 {[%emt 0:00:00]} 2. c4 {[%emt 0:00:00]} e6 {[%emt 0:00:00]} 3. Nf3 {[%emt 0:00:00]} b6 {[%emt 0:00:34]} 4. a3 {[%emt 0:00:00]} Ba6 {[%emt 0:00:53]} 5. Qc2 {[%emt 0:00:13]} Bb7 {[%emt 0:00:33]} 6. Nc3 {[%emt 0:00:09]} c5 {[%emt 0:00:22]} 7. e4 {[%emt 0:00:54]} cxd4 {[%emt 0:00:15]} 8. Nxd4 {[%emt 0:00:02]} Bc5 {[%emt 0:00:56]} 9. Nb3 {[%emt 0:00:59]} Nc6 {[%emt 0:00:18]} 10. Bg5 {[%emt 0:02:05]} h6 {[%emt 0:01:43]} 11. Bh4 {[%emt 0:00:21]} O-O {[%emt 0:01:56]} 12. Rd1 {[%emt 0:06:24]} Be7 {[%emt 0:01:46]} 13. Be2 {[%emt 0:01:16]} d6 {[%emt 0:08:03]} 14. O-O {[%emt 0:10:55]} a6 {[%emt 0:04:28]} 15. Bg3 {[%emt 0:08:02]} Qc7 {[%emt 0:02:55]} 16. Nd5 {[%emt 0:10:21]} exd5 {[%emt 0:01:38]} 17. cxd5 {[%emt 0:00:05]} Rfc8 {[%emt 0:03:28]} 18. dxc6 {[%emt 0:08:06]} Qxc6 {[%emt 0:00:16]} 19. Qxc6 {[%emt 0:01:07]} Bxc6 {[%emt 0:00:07]} 20. Bxd6 {[%emt 0:05:01]} Bxd6 {[%emt 0:00:11]} 21. Rxd6 {[%emt 0:00:03]} Nxe4 {[%emt 0:00:26]} 22. Rd4 {[%emt 0:00:19]} Nf6 {[%emt 0:00:39]} 23. Rfd1 {[%emt 0:05:53]} a5 {[%emt 0:01:44]} 24. f3 {[%emt 0:01:18]} Kf8 {[%emt 0:01:09]} 25. Kf2 {[%emt 0:00:43]} Ke7 {[%emt 0:03:50]} 26. Nd2 {[%emt 0:09:08]} Bd5 {[%emt 0:12:11]} 27. Nc4 {[%emt 0:00:59]} Bxc4 {[%emt 0:00:26]} 28. Bxc4 {[%emt 0:01:34]} Rc5 {[%emt 0:01:47]} 29. a4 {[%emt 0:02:28]} Rac8 {[%emt 0:04:59]} 30. b3 {[%emt 0:00:04]} R5c6 {[%emt 0:01:26]} 31. h4 {[%emt 0:00:40]} Rc5 {[%emt 0:07:26]} 32. g4 {[%emt 0:03:22]} g5 {[%emt 0:01:16]} 33. Kg3 {[%emt 0:01:23]} R8c7 {[%emt 0:11:10]} 34. Re1+ {[%emt 0:05:28]} Kf8 {[%emt 0:00:05]} 35. Rd6 {[%emt 0:01:40]} gxh4+ {[%emt 0:05:00]} 36. Kxh4 {[%emt 0:00:17]} R5c6 {[%emt 0:00:41]} 37. Rd8+ {[%emt 0:00:34]} Kg7 {[%emt 0:00:06]} 38. Re5 {[%emt 0:03:16]} Nd7 {[%emt 0:03:00]} 39. Re7 {[%emt 0:02:01]} Nc5 {[%emt 0:00:26]} 40. Ree8 {[%emt 0:01:07]} Nb7 {[%emt 0:01:06]} 41. Rg8+ {[%emt 0:03:37]} Kf6 {[%emt 0:00:09]} 42. Rd5 {[%emt 0:03:59]} Nd6 {[%emt 0:02:02]} 43. Bb5 {[%emt 0:00:18]} Nxb5 {[%emt 0:00:42]} 44. Rxb5 {[%emt 0:00:05]} Rd6 {[%emt 0:02:22]} 45. Kh5 {[%emt 0:02:22]} Rc1 {[%emt 0:02:38]} 46. Kxh6 {[%emt 0:00:57]} Rh1+ {[%emt 0:03:33]} 47. Rh5 {[%emt 0:00:04]} Rb1 {[%emt 0:00:11]} 48. Re8 {[%emt 0:00:34]} 1-0

[Event "V. Korchnoi Memorial 2019"]
[Site "St. Petersburg"]
[Date "2019.08.22"]
[Round "9.10"]
[White "Belyakov, Bogdan"]
[Black "Vlasenko, Miroslav"]
[Result "0-1"]
[ECO "B22"]
[WhiteElo "2505"]
[BlackElo "2419"]
[Annotator "ChessBase"]
[PlyCount "122"]
[EventDate "2019.08.13"]
[EventType "swiss"]
[EventCountry "RUS"]
[SourceTitle "playchess.com"]
[Source "ChessBase"]
[SourceQuality "1"]
[TimeControl "5400+30"]

1. e4 {[%emt 0:00:00]} Nf6 {[%emt 0:04:47]} 2. e5 {[%emt 0:02:11]} Nd5 {[%emt 0:00:08]} 3. c4 {[%emt 0:03:21]} Nb6 {[%emt 0:00:08]} 4. c5 {[%emt 0:00:05]} Nd5 {[%emt 0:00:07]} 5. Bc4 {[%emt 0:01:23]} e6 {[%emt 0:00:31]} 6. d4 {[%emt 0:00:06]} d6 {[%emt 0:05:26]} 7. cxd6 {[%emt 0:03:52]} cxd6 {[%emt 0:00:03]} 8. Nf3 {[%emt 0:00:07]} Nc6 {[%emt 0:13:03]} 9. O-O {[%emt 0:00:54]} Be7 {[%emt 0:03:05]} 10. Qe2 {[%emt 0:00:25]} Nb6 {[%emt 0:05:06]} 11. Bb3 {[%emt 0:02:35]} O-O {[%emt 0:06:27]} 12. Nc3 {[%emt 0:03:08]} d5 {[%emt 0:05:49]} 13. Bc2 {[%emt 0:01:46]} f5 {[%emt 0:00:44]} 14. exf6 {[%emt 0:01:42]} Bxf6 {[%emt 0:00:10]} 15. Rd1 {[%emt 0:02:43]} Nc4 {[%emt 0:06:49]} 16. b3 {[%emt 0:14:26]} Nd6 {[%emt 0:00:32]} 17. Ba3 {[%emt 0:00:07]} a5 {[%emt 0:09:52]} 18. Nb5 {[%emt 0:30:17]} Nb4 {[%emt 0:00:31]} 19. Nxd6 {[%emt 0:01:28]} Qxd6 {[%emt 0:00:09]} 20. Ne5 {[%emt 0:00:16]} Bxe5 {[%emt 0:08:46]} 21. dxe5 {[%emt 0:00:06]} Qa6 {[%emt 0:00:36]} 22. Bd3 {[%emt 0:00:46]} Qb6 {[%emt 0:00:11]} 23. Bxb4 {[%emt 0:01:29]} axb4 {[%emt 0:01:51]} 24. Rd2 {[%emt 0:00:42]} Rf7 {[%emt 0:03:36]} 25. Qh5 {[%emt 0:16:59]} g6 {[%emt 0:00:12]} 26. Qe2 {[%emt 0:00:18]} Bd7 {[%emt 0:00:26]} 27. Re1 {[%emt 0:00:24]} Rc8 {[%emt 0:01:13]} 28. h4 {[%emt 0:01:03]} Rcf8 {[%emt 0:03:41]} 29. Rf1 {[%emt 0:00:11]} Rf4 {[%emt 0:01:09]} 30. g3 {[%emt 0:01:02]} Rf3 {[%emt 0:00:48]} 31. Kg2 {[%emt 0:00:06]} Bc6 {[%emt 0:00:31]} 32. Qxf3 {[%emt 0:04:57]} Rxf3 {[%emt 0:00:09]} 33. Kxf3 {[%emt 0:00:03]} Qd4 {[%emt 0:01:01]} 34. Re1 {[%emt 0:01:53]} Qc3 {[%emt 0:00:47]} 35. Ke2 {[%emt 0:01:21]} Qxe5+ {[%emt 0:00:29]} 36. Kf1 {[%emt 0:00:08]} Qc3 {[%emt 0:00:28]} 37. Rdd1 {[%emt 0:00:43]} e5 {[%emt 0:02:44]} 38. Re3 {[%emt 0:00:28]} Qb2 {[%emt 0:00:33]} 39. Re2 {[%emt 0:00:56]} Qd4 {[%emt 0:00:16]} 40. Ree1 {[%emt 0:01:45]} Qg4 {[%emt 0:00:25]} 41. Kg1 {[%emt 0:00:56]} d4 {[%emt 0:00:33]} 42. Rc1 {[%emt 0:00:06]} Qf3 {[%emt 0:01:19]} 43. Rxc6 {[%emt 0:00:08]} bxc6 {[%emt 0:00:20]} 44. Bc4+ {[%emt 0:00:56]} Kf8 {[%emt 0:00:29]} 45. Rxe5 {[%emt 0:01:12]} d3 {[%emt 0:00:24]} 46. Re3 {[%emt 0:01:14]} Qd1+ {[%emt 0:00:07]} 47. Kg2 {[%emt 0:00:03]} d2 {[%emt 0:00:08]} 48. Be2 {[%emt 0:00:18]} Qc2 {[%emt 0:02:13]} 49. Rf3+ {[%emt 0:00:04]} Ke7 {[%emt 0:00:17]} 50. Rf4 {[%emt 0:00:05]} c5 {[%emt 0:00:21]} 51. Rc4 {[%emt 0:00:19]} Qc1 {[%emt 0:00:39]} 52. h5 {[%emt 0:00:19]} gxh5 {[%emt 0:01:06]} 53. Bxh5 {[%emt 0:00:05]} Kd6 {[%emt 0:00:25]} 54. Rh4 {[%emt 0:00:07]} d1=Q {[%emt 0:00:22]} 55. Bxd1 {[%emt 0:00:06]} Qxd1 {[%emt 0:00:05]} 56. Rxh7 {[%emt 0:00:03]} Qd5+ {[%emt 0:00:20]} 57. Kg1 {[%emt 0:00:10]} Qa8 {[%emt 0:00:22]} 58. Rh6+ {[%emt 0:00:18]} Kc7 {[%emt 0:00:23]} 59. g4 {[%emt 0:00:24]} Qxa2 {[%emt 0:00:14]} 60. g5 {[%emt 0:00:06]} Qb1+ {[%emt 0:00:27]} 61. Kg2 {[%emt 0:00:16]} Qf5 {[%emt 0:00:15]} 0-1